bitfinex/quotes_ETHUSD_20260302
["timestamp","ask_amount","ask_price","bid_price","bid_amount"]
[1772421394368,9.175,1967.4,1967.0,0.00153886]
[1772421394565,9.175,1967.4,1966.2,1.27148814]
[1772421394566,7.77012131,1967.2,1966.2,1.27148814]
[1772421394770,7.77012131,1967.2,1966.3,0.15895501]
[1772421394984,7.77012131,1967.2,1966.4,0.15895501]
[1772421395191,32.0,1967.1,1966.2,1.273027]
[1772421395374,32.0,1967.1,1966.3,0.15896876]
[1772421395591,32.0,1967.1,1966.2,1.273027]
[1772421395809,0.00153886,1968.0,1966.3,0.00153886]
[1772421396016,0.00153886,1968.0,1966.8,2.13209571]
[1772421396310,0.00153886,1968.0,1967.0,0.001]
[1772421396711,0.00153886,1968.0,1967.1,0.1589049]
[1772421396712,6.50076943,1968.0,1967.1,0.1589049]
[1772421397009,6.50076943,1968.0,1967.0,0.001]
[1772421397201,6.50076943,1968.0,1967.1,0.1589146]
[1772421397399,6.50076943,1968.0,1967.0,0.001]
[1772421397602,7.77111572,1968.0,1967.0,0.001]
[1772421397919,6.49923057,1967.7,1967.0,0.001]
[1772421398208,9.17723057,1967.7,1967.0,0.001]
[1772421402020,2.678,1967.7,1967.0,0.001]
[1772421402323,9.17976943,1968.0,1967.0,0.001]
[1772421402504,2.68053886,1968.0,1967.1,3.32700993]
[1772421402820,7.77137335,1968.3,1967.1,3.16655971]
[1772421403019,12.48724408,1969.8,1968.1,2.06655971]
[1772421403020,6.5,1969.2,1968.1,2.06655971]
[1772421403236,6.5,1969.2,1968.2,0.15881929]
[1772421403391,6.5,1969.2,1968.0,2.06655971]
[1772421403598,2.26,1969.2,1968.3,2.06655971]
[1772421403820,63.96619626,1968.0,1967.9,4.77385277]
[1772421404025,9.25,1969.9,1968.2,0.25239224]
[1772421404329,2.677,1969.7,1968.8,2.06655971]
[1772421405321,9.177,1969.7,1968.8,2.06655971]
[1772421405520,6.5,1969.6,1968.2,2.31895195]
[1772421405821,6.5,1969.6,1968.5,2.06655971]
[1772421406130,0.00153886,1970.0,1969.4,2.06655971]
[1772421406324,0.00153886,1970.0,1969.2,0.18685624]
[1772421406532,0.00153886,1970.0,1969.1,2.06655971]
[1772421406733,0.00153886,1970.0,1968.9,1.33528052]
[1772421406734,0.00153886,1970.0,1969.0,0.18685624]
[1772421406893,0.00153886,1970.0,1969.1,0.22425688]
[1772421407221,0.00153886,1970.0,1969.1,0.065536]
[1772421407905,0.00153886,1970.0,1969.1,1.165536]
[1772421408105,0.00153886,1970.0,1969.2,1.26955108]
[1772421409719,0.002,1969.9,1969.2,1.26955108]
[1772421413554,2.667,1970.1,1969.2,3.33611079]
[1772421413867,2.667,1970.1,1969.3,0.18685624]
[1772421414161,2.667,1970.1,1969.2,1.26955108]
[1772421415262,10.43598315,1970.1,1969.2,1.26955108]
[1772421415559,8.56655971,1970.0,1969.2,1.26955108]
[1772421416544,8.56655971,1970.0,1969.2,0.065536]
[1772421416747,6.5,1970.0,1969.2,0.065536]
[1772421416945,2.665,1970.2,1969.3,0.18685624]
[1772421417144,2.665,1970.2,1969.5,0.18685624]
[1772421417145,0.002,1970.2,1969.5,0.18685624]
[1772421417357,0.002,1970.2,1969.5,2.25341595]
[1772421417665,0.002,1970.2,1969.5,0.18685624]
[1772421418456,6.5,1970.1,1969.1,5.07820434]
[1772421418661,8.56655971,1970.0,1969.0,0.2539311]
[1772421419057,6.5,1970.0,1969.0,0.2539311]
[1772421419270,2.661,1969.9,1969.0,0.2539311]
[1772421420169,2.66,1970.1,1969.1,6.2642167]
[1772421420670,2.66,1970.1,1969.2,1.26955108]
[1772421420866,2.06855971,1970.6,1969.6,6.1986807]
[1772421421080,0.002,1970.6,1969.8,6.1986807]
[1772421421266,0.002,1970.6,1969.9,3.86]
[1772421422543,2.06655971,1970.5,1970.0,1.26903553]
[1772421422741,0.002,1970.0,1969.9,5.12904939]
[1772421423073,0.002,1970.0,1969.5,5.12932062]
[1772421423245,0.002,1970.0,1969.5,1.26932062]
[1772421423847,5.9254057,1970.0,1969.5,1.26932062]
[1772421424268,0.002,1970.0,1969.5,1.26932062]
[1772421425083,0.002,1970.0,1969.3,5.07743082]
[1772421425951,5.9234057,1970.1,1970.0,3.858]
[1772421426155,5.9234057,1970.1,1969.3,5.07743082]
[1772421426363,2.656,1970.2,1969.4,3.86]
[1772421427065,2.656,1970.2,1969.5,1.2693577]
[1772421428484,2.06655971,1970.0,1969.4,5.12938191]
[1772421428875,4.72255971,1970.2,1969.4,5.12938191]
[1772421429199,0.002,1970.2,1969.6,1.26929325]
[1772421429499,0.002,1970.2,1969.6,7.46797395]
[1772421429674,2.524,1970.5,1969.7,17.5286807]
[1772421430053,2.524,1970.5,1969.8,3.86]
[1772421430163,5.9234057,1970.4,1969.8,3.86]
[1772421430882,5.9234057,1970.1,1969.6,1.26929325]
[1772421431189,5.9234057,1970.1,1969.3,8.93793947]
[1772421431190,5.9234057,1970.1,1969.3,1.26948661]
[1772421431394,5.9234057,1970.1,1969.4,0.15870073]
[1772421431589,5.9234057,1970.1,1969.3,1.26948661]
[1772421431791,5.9234057,1970.1,1969.4,0.15870073]
[1772421431992,5.9234057,1970.1,1969.3,1.26948661]
[1772421432199,5.9234057,1970.1,1969.4,0.15870073]
[1772421432396,5.9234057,1970.1,1969.5,0.15870073]
[1772421432600,5.9234057,1970.1,1969.6,0.15870073]
[1772421432787,5.9234057,1970.1,1969.3,1.26948661]
[1772421433000,6.32679776,1970.4,1969.4,6.28573621]
[1772421433193,6.32679776,1970.4,1969.5,0.15870073]
[1772421433368,7.59558071,1970.4,1969.6,1.42799398]
[1772421433703,7.59558071,1970.4,1969.7,0.15870073]
[1772421433915,7.59558071,1970.4,1969.8,0.15870073]
[1772421434078,6.32679776,1970.4,1969.6,1.26929325]
[1772421434282,6.32679776,1970.4,1969.7,0.15870073]
[1772421434585,6.32679776,1970.4,1969.6,1.26929325]
[1772421434586,6.32679776,1970.4,1969.8,0.15870073]
[1772421434787,6.32679776,1970.4,1969.9,0.001]
[1772421435300,7.59566781,1970.3,1969.9,0.001]
[1772421435496,2.06655971,1970.2,1969.8,0.001]
[1772421435696,8.39335747,1970.2,1969.8,0.001]
[1772421435902,6.32679776,1970.1,1969.8,0.001]
[1772421436102,2.651,1970.0,1969.8,0.001]
[1772421436886,2.651,1970.0,1969.7,3.75970765]
[1772421437212,6.19829866,1969.7,1969.2,1.26954865]
[1772421437714,7.46754561,1969.7,1969.1,1.2705636]
[1772421438095,7.46754561,1969.7,1969.1,0.001]
[1772421438296,7.46754561,1969.7,1969.1,1.27061216]
[1772421438504,7.46754561,1969.7,1969.1,0.001]
[1772421438715,6.19829866,1969.5,1969.1,0.001]
[1772421438892,8.85129866,1969.4,1969.1,0.001]
[1772421439218,8.85129866,1969.4,1969.1,1.27060812]
[1772421439420,6.19829866,1969.3,1969.1,0.001]
[1772421446029,6.19829866,1969.3,1969.0,0.00253886]
[1772421447509,6.19829866,1969.3,1969.0,0.001]
[1772421447510,7.4678009,1969.3,1969.0,0.001]
[1772421447833,7.4678009,1969.3,1968.8,0.001]
[1772421448037,7.4678009,1969.3,1968.3,6.37]
[1772421448038,6.19829866,1969.1,1968.5,5.02970662]
[1772421448243,6.19829866,1969.1,1968.5,1.26999897]
[1772421448244,2.658,1969.0,1968.5,1.26999897]
[1772421449050,2.05553121,1969.1,1969.0,3.76070765]
[1772421449336,2.659,1969.7,1969.1,5.86985427]
[1772421449913,2.659,1969.7,1969.3,5.86985427]
[1772421450130,0.002,1970.0,1969.3,5.86985427]
[1772421450947,1.27105126,1970.0,1969.3,5.86985427]
[1772421451301,0.002,1970.0,1969.3,5.86985427]
[1772421451850,1.27104015,1970.0,1969.2,1.26955108]
[1772421451998,0.002,1970.0,1969.1,10.94805861]
[1772421453335,0.002,1970.0,1969.0,1.27215442]
[1772421453336,6.19829866,1969.8,1969.2,1.1]
[1772421453539,6.19829866,1969.8,1969.0,1.27220586]
[1772421454205,1.26922881,1969.7,1969.0,0.00253886]
[1772421454521,2.654,1969.6,1969.0,0.00253886]
[1772421454702,2.654,1969.6,1969.0,5.87239313]
[1772421455937,3.47241592,1969.4,1968.9,0.001]
[1772421456144,2.654,1969.6,1968.9,0.001]
[1772421456300,1.2693577,1969.5,1968.9,0.001]
[1772421456501,1.2693577,1969.5,1968.9,5.87085427]
[1772421456749,2.653,1969.6,1968.9,5.87085427]
[1772421458014,2.653,1969.6,1968.9,0.001]
[1772421458327,1.2693577,1969.5,1968.9,0.001]
[1772421459364,0.00353886,1970.0,1969.1,5.86985427]
[1772421460011,0.00353886,1970.0,1969.2,9.72985427]
[1772421460199,0.002,1970.5,1969.6,6.5]
[1772421460399,0.002,1970.5,1969.8,6.5]
[1772421460667,0.00453886,1971.0,1970.3,6.5]
[1772421461422,0.00453886,1971.0,1970.2,6.565536]
[1772421461933,0.00453886,1971.0,1970.4,6.5]
[1772421462134,7.48867987,1971.9,1970.5,6.49773057]
[1772421462135,1.08,1971.4,1970.5,6.49773057]
[1772421462451,1.08,1971.4,1970.7,6.49773057]
[1772421463414,1.26786268,1971.9,1970.9,6.49773057]
[1772421463615,2.89006968,1971.7,1970.9,6.49773057]
[1772421464105,1.26786268,1971.9,1970.9,6.49773057]
[1772421464306,2.645,1971.8,1970.9,7.76616351]
[1772421464517,2.645,1971.8,1970.9,6.49773057]
[1772421464827,2.645,1971.8,1970.9,7.76618355]
[1772421465864,0.00153886,1972.0,1970.9,7.76618355]
[1772421466143,0.78637442,1972.4,1971.7,6.49773057]
[1772421466300,0.78637442,1972.4,1971.9,6.49773057]
[1772421466503,2.05389747,1972.4,1971.3,6.49773057]
[1772421466807,2.341,1972.3,1971.3,6.49773057]
[1772421467010,1.26864842,1973.0,1972.3,6.49773057]
[1772421467226,1.26864842,1973.0,1972.0,6.49773057]
[1772421467813,2.642,1972.9,1972.0,6.49773057]
[1772421468224,5.53206968,1972.9,1972.0,6.49773057]
[1772421468430,1.92218471,1973.7,1972.3,2.75]
[1772421468632,1.26652819,1973.9,1972.5,6.49773057]
[1772421469147,1.26805194,1974.0,1972.7,6.49773057]
[1772421469327,1.26805194,1974.0,1972.6,3.07692592]
[1772421469328,0.00153886,1974.0,1973.0,6.49773057]
[1772421469548,1.26801038,1974.0,1973.0,6.49773057]
[1772421469708,1.26800978,1974.0,1973.0,6.49773057]
[1772421470044,0.156397,1974.2,1973.3,6.49696114]
[1772421470227,1.42274242,1974.2,1973.3,6.49696114]
[1772421470426,1.42274242,1974.2,1973.1,6.49696114]
[1772421472429,2.646,1974.1,1973.1,6.49696114]
[1772421472851,1.26646403,1974.0,1973.1,7.76399725]
[1772421473026,2.89006968,1973.7,1972.7,6.49696114]
[1772421473227,5.97286837,1973.6,1972.4,5.90989404]
[1772421473548,5.97286837,1973.6,1972.4,7.17738134]
[1772421473752,2.647,1973.5,1972.4,7.17738134]
[1772421474114,2.647,1973.5,1972.4,7.17738458]
[1772421474742,5.97286837,1973.6,1972.5,8.79996372]
[1772421474743,2.646,1973.6,1972.5,8.79996372]
[1772421475073,1.26678489,1973.5,1972.6,1.26736287]
[1772421475244,1.26678489,1973.5,1972.6,7.17725691]
[1772421476213,3.91272987,1973.6,1972.6,7.17725691]
[1772421476724,1.26672987,1973.6,1972.8,5.90989404]
[1772421477347,1.26665148,1973.8,1972.9,7.17706419]
[1772421478119,3.91057755,1973.9,1972.9,7.17706419]
[1772421479347,9.88344592,1973.9,1972.5,7.17732116]
[1772421479557,5.97286837,1973.6,1972.3,2.75]
[1772421479727,5.97286837,1973.3,1972.1,0.001]
[1772421480050,2.643,1973.2,1972.1,0.001]
[1772421480232,2.643,1973.2,1972.1,1.26868329]
[1772421480821,2.89006968,1972.3,1971.0,0.00153886]
[1772421481135,2.89006968,1972.3,1971.0,7.17981827]
[1772421481362,1.26768419,1972.1,1971.0,7.17981827]
[1772421481651,1.26768419,1972.1,1971.0,5.9114329]
[1772421481950,2.89006968,1972.0,1971.0,0.00153886]
[1772421482150,7.24055256,1972.1,1971.0,0.00153886]
[1772421482552,2.643,1972.0,1971.0,7.17981465]
[1772421483349,1.26781276,1971.9,1971.0,0.00153886]
[1772421484457,5.97286837,1971.7,1970.3,5.07535701]
[1772421484683,5.97286837,1971.7,1970.2,5.90989404]
[1772421484883,5.97286837,1971.7,1970.0,2.75153886]
[1772421484884,5.97286837,1971.6,1970.1,1.26891273]
[1772421485463,7.24093836,1971.5,1970.1,1.26891273]
[1772421485665,7.24093836,1971.5,1970.1,7.17880677]
[1772421485666,9.88593836,1971.5,1970.1,7.17880677]
[1772421486775,7.24093836,1971.5,1970.1,7.17880677]
[1772421486959,2.645,1971.4,1970.1,7.17880677]
[1772421487292,8.61786837,1971.4,1970.1,7.17880677]
[1772421487968,7.24106702,1971.3,1970.2,0.001]
[1772421488283,5.07227998,1971.7,1970.2,0.001]
[1772421488284,1.26794137,1971.7,1970.2,5.91089404]
[1772421488484,7.24080974,1971.7,1970.4,5.90989404]
[1772421488786,7.24080974,1971.7,1970.3,2.51656952]
[1772421489787,5.97286837,1971.6,1970.2,0.001]
[1772421490083,1.26819865,1971.3,1970.2,0.001]
[1772421490302,8.61786837,1971.2,1970.2,0.001]
[1772421490602,5.97286837,1971.1,1970.0,0.00253886]
[1772421490971,5.97286837,1970.8,1970.0,0.00253886]
[1772421492001,5.97286837,1970.6,1970.0,0.00253886]
[1772421492169,2.645,1970.5,1970.0,0.00253886]
[1772421492678,5.97286837,1970.6,1970.0,0.00253886]
[1772421493002,2.644,1970.5,1970.0,0.00253886]
[1772421493205,1.26858476,1970.7,1970.0,0.00253886]
[1772421493410,2.644,1970.4,1970.0,0.00253886]
[1772421494806,3.91278775,1970.4,1970.0,0.00253886]
[1772421497614,10.04621044,1970.4,1969.4,1.26942215]
[1772421497837,10.04621044,1970.4,1969.2,6.48737438]
[1772421497838,6.13342269,1970.3,1969.2,1.27053616]
[1772421498139,6.13342269,1970.3,1969.2,0.001]
[1772421498337,6.13342269,1970.3,1969.0,5.08116372]
[1772421498338,6.13342269,1970.0,1969.0,0.00253886]
[1772421498516,2.88254618,1970.1,1969.0,0.00253886]
[1772421498517,6.13342269,1969.8,1969.0,0.00253886]
[1772421498716,6.13342269,1969.6,1969.0,0.00253886]
[1772421499445,6.13342269,1969.6,1968.2,1.27019611]
[1772421499934,6.13342269,1969.4,1968.2,1.27019611]
[1772421500838,2.644,1969.6,1968.4,6.48637438]
[1772421501727,2.643,1969.6,1969.0,0.001]
[1772421503034,1.2693577,1969.5,1969.0,0.001]
[1772421503573,2.643,1969.6,1969.0,0.001]
[1772421503708,2.64353886,1970.0,1969.0,6.48737438]
[1772421504714,0.00153886,1970.0,1969.0,6.48737438]
[1772421505015,0.002,1970.3,1969.4,6.48637438]
[1772421505016,0.824,1970.3,1969.4,6.48637438]
[1772421506312,0.002,1970.3,1969.5,6.48637438]
[1772421506520,0.002,1970.3,1969.6,6.48637438]
[1772421507024,148.3602824,1970.5,1969.8,6.48637438]
[1772421507227,73.65360044,1970.5,1969.8,6.48637438]
[1772421507516,74.92231883,1970.5,1969.8,6.48637438]
[1772421507720,74.92231883,1970.5,1969.7,1.26922881]
[1772421508316,74.92231883,1970.5,1969.4,7.75578729]
[1772421508717,2.658,1970.4,1969.4,7.75578729]
[1772421509339,1.2688423,1970.3,1969.4,7.75578729]
[1772421510421,263.60272498,1969.5,1969.4,6.48637438]
[1772421510622,261.73446936,1969.5,1969.4,6.37336673]
[1772421510818,261.73446936,1969.5,1969.0,6.48891324]
[1772421511031,261.73446936,1969.5,1969.0,7.75858874]
[1772421511441,261.73446936,1969.5,1969.0,6.48891324]
[1772421511729,261.73446936,1969.5,1969.0,7.75859183]
[1772421511943,263.00382872,1969.5,1969.0,6.48891324]
[1772421512554,261.73446936,1969.5,1969.0,6.48891324]
[1772421512956,263.00383285,1969.5,1969.0,6.48891324]
[1772421513253,261.73446936,1969.5,1969.0,6.48891324]
[1772421513562,256.50383484,1969.5,1969.0,0.00253886]
[1772421513746,255.23446936,1969.5,1969.0,0.00253886]
[1772421514147,256.50383382,1969.5,1969.0,0.00253886]
[1772421516474,255.23446936,1969.5,1969.0,0.00253886]
[1772421516663,256.50382883,1969.5,1969.0,0.00253886]
[1772421517035,2.15200355,1969.4,1969.0,0.00253886]
[1772421517462,1.26948661,1969.3,1969.0,0.00253886]
[1772421518735,7.4029093,1969.3,1968.9,0.001]
[1772421519130,255.23446936,1969.5,1968.9,0.001]
[1772421519361,4.2264715,1969.4,1968.9,0.001]
[1772421519563,2.974,1969.3,1968.9,0.001]
[1772421520034,2.992,1969.2,1968.9,0.001]
[1772421520869,5.0770101,1969.7,1968.9,0.001]
[1772421521082,3.003,1969.6,1968.9,0.001]
[1772421521795,3.003,1969.5,1968.9,0.001]
[1772421522500,6.13342269,1969.1,1968.7,0.001]
[1772421522698,3.002,1969.0,1968.7,0.001]
[1772421523868,1.26974452,1968.9,1968.0,5.08269875]
[1772421525018,1.26974452,1968.9,1968.0,11.56907313]
[1772421526917,6.13342269,1968.8,1968.1,0.001]
[1772421527418,4.26572963,1969.0,1968.1,6.37252365]
[1772421527912,2.996,1969.0,1968.1,6.37252365]
[1772421528105,2.996,1969.0,1968.2,1.27019611]
[1772421528106,4.26569626,1969.0,1968.2,1.27019611]
[1772421528278,4.26569626,1969.0,1968.2,7.64171976]
[1772421529111,4.26568659,1969.0,1968.2,7.64171976]
[1772421531007,2.996,1969.0,1968.2,7.64171976]
[1772421531201,4.26568099,1969.0,1968.2,7.64171976]
[1772421531515,2.06604273,1969.4,1968.7,6.37152365]
[1772421531516,0.002,1969.4,1968.7,6.37152365]
[1772421531717,0.002,1969.4,1968.8,8.43556638]
[1772421532216,0.002,1969.4,1968.9,1.26974452]
[1772421532805,0.002,1969.4,1968.9,7.64126817]
[1772421534109,0.002,1969.5,1968.9,7.64126817]
[1772421534786,0.00153886,1970.0,1969.5,6.37152365]
[1772421534983,0.00153886,1970.0,1969.2,6.19212819]
[1772421534984,0.002,1970.3,1969.9,2.06404273]
[1772421535397,0.002,1970.3,1969.4,6.37152365]
[1772421535722,0.002,1970.3,1969.4,8.66352365]
[1772421536316,0.002,1970.3,1969.5,1.2693577]
[1772421536925,0.002,1970.3,1969.6,2.06404273]
[1772421537620,0.002,1970.3,1969.6,8.43556638]
[1772421538519,0.002,1970.3,1969.7,1.26922881]
[1772421538691,6.20822875,1970.3,1969.7,1.26922881]
[1772421540412,7.47707793,1970.3,1969.5,5.07691526]
[1772421541193,6.20622875,1969.9,1969.1,1.26961556]
[1772421542524,5.04604273,1970.2,1969.1,6.37152365]
[1772421542525,7.47716783,1970.2,1969.1,6.37152365]
[1772421542835,10.45614451,1970.2,1969.1,6.37152365]
[1772421543729,6.20622875,1970.1,1969.1,6.37152365]
[1772421543933,6.20622875,1970.0,1969.0,0.00153886]
[1772421544133,0.002,1970.2,1969.1,6.37152365]
[1772421544333,0.002,1970.3,1969.7,2.06404273]
[1772421544531,0.002,1970.3,1969.8,1.26916438]
[1772421545628,6.20822875,1970.3,1969.4,1.2693577]
[1772421546305,2.06404273,1970.1,1969.4,1.2693577]
[1772421546517,7.4753287,1969.9,1969.1,1.26961556]
[1772421547540,7.4753287,1969.9,1969.0,1.27120945]
[1772421547541,6.20622875,1969.7,1969.0,1.27120945]
[1772421547908,6.20622875,1969.7,1969.0,1.2712157]
[1772421548539,6.20622875,1969.7,1969.0,0.00153886]
[1772421548827,2.61071552,1969.9,1969.0,0.00153886]
[1772421548828,10.08609508,1969.9,1969.0,0.00153886]
[1772421549040,0.002,1970.3,1969.5,2.06404273]
[1772421549202,0.002,1970.3,1969.4,6.37152365]
[1772421550427,7.47707812,1970.3,1969.2,4.35004273]
[1772421550637,0.002,1970.3,1969.4,7.6409458]
[1772421551007,0.002,1970.3,1969.5,6.37152365]
[1772421551219,0.002,1970.3,1969.6,8.43556638]
[1772421551509,0.002,1970.3,1969.7,6.37152365]
[1772421551716,0.002,1970.4,1969.7,6.37152365]
[1772421552035,0.002,1970.4,1969.4,8.90742215]
[1772421552036,0.002,1970.4,1969.9,8.4813793]
[1772421552353,0.002,1970.6,1970.2,2.06404273]
[1772421552354,1e-08,1970.6,1970.2,2.06404273]
[1772421552525,0.00153886,1971.0,1970.2,8.4813793]
[1772421552839,0.00153886,1971.0,1970.5,2.06404273]
[1772421553042,2.613,1971.5,1970.8,2.06404273]
[1772421553229,1.26788565,1971.8,1970.8,8.4813793]
[1772421553441,7.44517744,1972.0,1970.8,8.4813793]
[1772421553953,7.4451327,1972.0,1970.9,6.41733657]
[1772421554563,2.06404273,1972.5,1970.8,4.34904273]
[1772421554564,0.94571669,1972.6,1971.9,2.06404273]
[1772421554720,6.17584152,1972.8,1972.0,1.26774847]
[1772421554924,6.17584152,1972.8,1971.9,5.07107259]
[1772421554925,8.23988425,1972.8,1971.9,1.26776339]
[1772421555142,6.17584152,1972.8,1971.9,1.26776339]
[1772421555517,0.00453886,1973.0,1972.3,2.06404273]
[1772421555946,1.27166298,1973.0,1972.3,2.06404273]
[1772421556149,0.00453886,1973.0,1972.3,8.4813793]
[1772421556352,1.26670124,1973.7,1972.6,2.06404273]
[1772421556556,1.26670124,1973.7,1972.4,2.05531164]
[1772421556557,6.17584152,1973.6,1972.4,2.05531164]
[1772421556760,7.44262641,1973.5,1972.2,1.26761991]
[1772421560329,6.25951974,1973.3,1972.2,1.26761991]
[1772421561150,6.25951974,1973.3,1972.0,0.00153886]
[1772421561151,6.25951974,1972.8,1972.0,0.00153886]
[1772421561461,6.25951974,1972.6,1971.2,7.58144964]
[1772421562164,6.25951974,1972.6,1971.2,1.26826298]
[1772421562529,6.25951974,1972.5,1971.2,1.26826298]
[1772421563350,6.25951974,1972.3,1971.0,0.00153886]
[1772421563730,6.25951974,1972.3,1971.0,6.31472552]
[1772421564551,4.22749138,1972.4,1971.0,6.31472552]
[1772421565138,1.26749138,1972.4,1971.0,6.31472552]
[1772421565467,5.06996552,1972.5,1971.2,6.31318666]
[1772421565776,11.32948526,1972.5,1971.2,6.31318666]
[1772421566136,0.002,1973.9,1973.7,6.31318666]
[1772421566346,3.62577707,1974.4,1973.6,0.2647]
[1772421566347,6.25951974,1976.5,1974.5,2.021453]
[1772421566586,2.94297849,1975.0,1974.4,4.07097265]
[1772421566733,2.94297849,1975.0,1973.9,2.8820311]
[1772421566734,9.20249823,1975.0,1973.6,0.2647]
[1772421567061,9.20249823,1975.0,1973.7,5.28515101]
[1772421567365,9.20249823,1975.0,1974.0,0.00153886]
[1772421567783,6.25951974,1974.9,1974.0,0.00153886]
[1772421568271,6.25951974,1974.7,1974.0,0.00153886]
[1772421568843,0.002,1973.7,1973.6,1.53142071]
[1772421569484,1.41086331,1973.7,1973.6,1.53142071]
[1772421570063,7.5257079,1974.5,1973.6,1.53142071]
[1772421571778,7.5257079,1974.5,1973.6,1.26672071]
[1772421573489,7.5257079,1974.5,1973.1,1.26704171]
[1772421573955,7.5257079,1974.5,1973.0,0.00153886]
[1772421574156,6.25951974,1974.3,1973.0,1.26863879]
[1772421574462,6.25951974,1974.3,1973.0,0.00153886]
[1772421575477,6.25951974,1974.3,1972.8,1.26718853]
[1772421575797,6.25951974,1974.3,1972.7,5.06909684]
[1772421575798,6.25951974,1973.9,1972.5,1.26742712]
[1772421576200,6.25951974,1973.9,1972.6,4.94105163]
[1772421576387,6.25951974,1973.9,1972.7,2.8820311]
[1772421576800,6.25951974,1973.9,1972.6,4.36599186]
[1772421577298,6.25951974,1973.8,1972.5,1.26742712]
[1772421577730,7.52617627,1973.7,1972.5,1.26742712]
[1772421577939,6.25951974,1973.7,1972.5,1.26742712]
[1772421579098,6.25951974,1973.7,1972.6,2.93230877]
[1772421579293,6.25951974,1973.7,1972.5,1.26742712]
[1772421579492,6.25951974,1973.7,1972.6,2.93222739]
[1772421579727,7.52622673,1973.7,1972.5,1.26742712]
[1772421579933,7.52622673,1973.7,1972.6,2.93226354]
[1772421580233,7.52622673,1973.7,1972.7,2.93670052]
[1772421580397,7.52622673,1973.7,1972.8,0.001]
[1772421582120,7.52622673,1973.7,1972.9,2.94689455]
[1772421582433,7.52622673,1973.7,1972.8,0.001]
[1772421583028,6.25951974,1973.7,1972.8,0.001]
[1772421583327,7.52618786,1973.7,1972.9,2.9498421]
[1772421583490,7.52618786,1973.7,1972.8,0.001]
[1772421583693,7.52618786,1973.7,1971.9,2.8820311]
[1772421583694,1.26678489,1973.5,1972.4,1.26746053]
[1772421583890,6.25951974,1973.4,1972.0,2.34730916]
[1772421584115,6.25951974,1973.4,1972.0,1.26923648]
[1772421585626,6.25951974,1973.4,1972.1,0.15850513]
[1772421585918,6.25951974,1973.4,1972.2,0.15850513]
[1772421586118,7.52643303,1973.3,1972.1,2.3457703]
[1772421586313,7.52643303,1973.3,1972.2,0.1584794]
[1772421586514,7.52643303,1973.3,1972.0,3.61500678]
[1772421586710,7.52643303,1973.3,1972.1,0.15848423]
[1772421586927,7.52643303,1973.3,1972.2,0.15848423]
[1772421587126,7.52643303,1973.3,1972.0,3.61500678]
[1772421587437,6.25951974,1973.3,1972.3,2.3457703]
[1772421587607,6.25951974,1973.3,1972.4,0.15849226]
[1772421587793,0.00153886,1974.0,1973.0,2.8820311]
[1772421587993,7.13269158,1974.0,1972.9,1.26717015]
[1772421588199,7.13269158,1974.0,1973.0,0.15844003]
[1772421588496,7.13269158,1974.0,1972.9,3.61294045]
[1772421588701,7.13269158,1974.0,1973.0,0.15842557]
[1772421588898,7.13269158,1974.0,1972.9,1.26717015]
[1772421589124,7.13269158,1974.0,1973.0,0.15842557]
[1772421589301,7.13269158,1974.0,1972.9,1.26717015]
[1772421589501,7.13269158,1974.0,1973.0,0.15842557]
[1772421589742,7.13269158,1974.0,1972.9,1.26717015]
[1772421589894,7.13269158,1974.0,1973.0,0.15842557]
[1772421590101,7.13269158,1974.0,1972.9,1.26717015]
[1772421590343,7.13269158,1974.0,1973.0,0.15842557]
[1772421590536,7.13269158,1974.0,1972.9,1.26717015]
[1772421590750,5.86622488,1974.0,1973.0,0.15842557]
[1772421591032,5.86622488,1974.0,1973.1,0.15842557]
[1772421591033,0.00153886,1974.0,1973.1,0.15842557]
[1772421591335,0.00153886,1974.0,1973.2,0.15842557]
[1772421591642,0.00153886,1974.0,1973.0,7.31984484]
[1772421591855,0.00153886,1974.0,1973.1,2.50417499]
[1772421592011,0.00153886,1974.0,1973.3,1.26691329]
[1772421592419,0.00153886,1974.0,1973.4,0.1584063]
[1772421592621,0.00153886,1974.0,1973.3,1.26691329]
[1772421592816,0.00153886,1974.0,1973.4,0.15839345]
[1772421593024,0.00153886,1974.0,1973.3,1.26691329]
[1772421593320,0.00153886,1974.0,1973.4,0.15839345]
[1772421593518,0.00153886,1974.0,1973.3,1.26691329]
[1772421593749,0.00153886,1974.0,1973.4,0.15839988]
[1772421593965,0.00153886,1974.0,1973.3,1.26691329]
[1772421594121,5.86668602,1974.4,1973.5,3.61255519]
[1772421594313,5.86668602,1974.4,1973.6,0.15839867]
[1772421594518,5.86668602,1974.4,1973.5,1.26678489]
[1772421594713,5.86668602,1974.4,1973.6,0.15839867]
[1772421594941,5.86668602,1974.4,1973.5,1.26678489]
[1772421595141,5.86668602,1974.4,1973.6,0.15840068]
[1772421595319,5.86668602,1974.4,1973.7,0.15840068]
[1772421595514,5.86668602,1974.4,1973.5,1.26678489]
[1772421595715,0.002,1973.9,1973.6,3.11615836]
[1772421595927,0.002,1973.9,1973.5,1.26678489]
[1772421596130,0.002,1973.9,1973.6,2.95833574]
[1772421596350,0.002,1973.9,1973.5,1.26673984]
[1772421596524,0.002,1973.9,1973.3,3.61263893]
[1772421596736,0.002,1973.9,1973.4,0.15841112]
[1772421597044,0.002,1973.9,1973.5,0.15841112]
[1772421597355,0.002,1973.9,1973.3,1.26686863]
[1772421597557,0.002,1973.9,1973.4,0.15841835]
[1772421597754,0.002,1973.9,1973.5,0.15841835]
[1772421597961,0.002,1973.9,1973.3,1.26686863]
[1772421598256,0.002,1973.9,1973.5,1.26678489]
[1772421598455,0.002,1973.9,1973.3,1.26691329]
[1772421598660,0.002,1973.9,1973.0,3.51239428]
[1772421598661,5.86668602,1973.9,1973.0,3.61438492]
[1772421598842,5.86468602,1973.7,1972.8,0.001]
[1772421599018,5.86468602,1973.5,1972.8,0.001]
[1772421599634,2.5955686,1973.8,1972.8,0.001]
[1772421599635,8.86868602,1973.4,1972.8,0.001]
[1772421599823,5.86468602,1973.3,1972.8,1.26823341]
[1772421600023,5.86468602,1973.3,1972.8,0.001]
[1772421600415,5.86468602,1973.7,1972.8,0.001]
[1772421601562,2.5955686,1973.8,1972.8,0.001]
[1772421601721,0.002,1973.9,1972.8,0.001]
[1772421602154,0.002,1973.9,1972.9,6.3497872]
[1772421602427,0.002,1973.9,1973.0,1.26710593]
[1772421602957,0.002,1973.9,1973.0,3.58210593]
[1772421603642,0.002,1973.9,1973.0,1.26710593]